[Event "Late-Titled-Tuesday-Blitz-October-24-2023"]
[Site "Chess.com"]
[Date "2023.10.24"]
[Round "11"]
[White "GlavkonVVS"]
[Black "Nick12772"]
[Result "0-1"]
[WhiteElo "2495"]
[BlackElo "2390"]
[TimeControl "180+1"]
[EndTime "16:10:08 PDT"]
[Termination "Nick12772 won by checkmate"]

1. d4 {[%clk 0:03:00.9]} 1... Nf6 {[%clk 0:02:59.7]} 2. c4 {[%clk 0:03:00.8]}
2... g6 {[%clk 0:02:59.9]} 3. Nc3 {[%clk 0:03:01]} 3... d5 {[%clk 0:03:00.6]} 4.
cxd5 {[%clk 0:03:00.1]} 4... Nxd5 {[%clk 0:03:01.5]} 5. Qb3 {[%clk 0:03:00.5]}
5... Nxc3 {[%clk 0:02:59.6]} 6. bxc3 {[%clk 0:03:01]} 6... Bg7 {[%clk
0:03:00.1]} 7. Ba3 {[%clk 0:03:01]} 7... O-O {[%clk 0:02:58.7]} 8. Rd1 {[%clk
0:03:01]} 8... Nc6 {[%clk 0:02:55.7]} 9. Nf3 {[%clk 0:02:59.9]} 9... b6 {[%clk
0:02:44.1]} 10. e4 {[%clk 0:02:52.6]} 10... Na5 {[%clk 0:02:42.4]} 11. Qb1
{[%clk 0:02:49.2]} 11... Bg4 {[%clk 0:02:36]} 12. Be2 {[%clk 0:02:46.7]} 12...
c5 {[%clk 0:02:36.2]} 13. dxc5 {[%clk 0:02:36.8]} 13... Bxc3+ {[%clk 0:02:36]}
14. Kf1 {[%clk 0:02:37]} 14... Qc7 {[%clk 0:02:19]} 15. cxb6 {[%clk 0:02:36.4]}
15... axb6 {[%clk 0:02:11]} 16. Rc1 {[%clk 0:02:31.4]} 16... Rfc8 {[%clk
0:02:05.5]} 17. Bb4 {[%clk 0:02:25.7]} 17... Bxf3 {[%clk 0:01:47.5]} 18. gxf3
{[%clk 0:02:20.3]} 18... Qe5 {[%clk 0:01:39.5]} 19. Bxc3 {[%clk 0:02:00.7]}
19... Rxc3 {[%clk 0:01:37.8]} 20. Rxc3 {[%clk 0:02:01.3]} 20... Qxc3 {[%clk
0:01:38.5]} 21. Qxb6 {[%clk 0:02:01.6]} 21... Qc1+ {[%clk 0:01:32.9]} 22. Kg2
{[%clk 0:02:00]} 22... Qg5+ {[%clk 0:01:33.5]} 23. Kh3 {[%clk 0:01:59.6]} 23...
Qh5+ {[%clk 0:01:24.7]} 24. Kg2 {[%clk 0:01:58.4]} 24... Qg5+ {[%clk 0:01:24.6]}
25. Kf1 {[%clk 0:01:57.2]} 25... Qc1+ {[%clk 0:01:24.6]} 26. Bd1 {[%clk
0:01:51.5]} 26... Qxd1+ {[%clk 0:01:21]} 27. Kg2 {[%clk 0:01:52]} 27... Qd6
{[%clk 0:01:14.2]} 28. Qb5 {[%clk 0:01:43]} 28... Qc6 {[%clk 0:01:07.3]} 29. Qe5
{[%clk 0:01:33.9]} 29... Qd6 {[%clk 0:00:54.3]} 30. Qb5 {[%clk 0:01:28.5]} 30...
Nc6 {[%clk 0:00:53]} 31. Rc1 {[%clk 0:01:23.4]} 31... Nd4 {[%clk 0:00:50.7]} 32.
Qb7 {[%clk 0:01:07.4]} 32... Rxa2 {[%clk 0:00:39.8]} 33. Rc8+ {[%clk 0:01:07.2]}
33... Kg7 {[%clk 0:00:40.1]} 34. Qb1 {[%clk 0:00:40.4]} 34... Ra7 {[%clk
0:00:27.9]} 35. Qb2 {[%clk 0:00:36.4]} 35... Qf6 {[%clk 0:00:28]} 36. Qc3 {[%clk
0:00:21.4]} 36... Ne2 {[%clk 0:00:20.8]} 37. Qxf6+ {[%clk 0:00:16]} 37... Kxf6
{[%clk 0:00:21.7]} 38. Rc6+ {[%clk 0:00:14]} 38... e6 {[%clk 0:00:20.9]} 39. h4
{[%clk 0:00:13.7]} 39... Nf4+ {[%clk 0:00:20.5]} 40. Kg3 {[%clk 0:00:13.9]}
40... Nd3 {[%clk 0:00:20.7]} 41. Rc3 {[%clk 0:00:13.3]} 41... Ne5 {[%clk
0:00:20.6]} 42. f4 {[%clk 0:00:13.6]} 42... Nd7 {[%clk 0:00:20.5]} 43. f3 {[%clk
0:00:12.9]} 43... Kg7 {[%clk 0:00:20.7]} 44. Rc6 {[%clk 0:00:12.4]} 44... Nf6
{[%clk 0:00:21]} 45. f5 {[%clk 0:00:12]} 45... exf5 {[%clk 0:00:20.8]} 46. exf5
{[%clk 0:00:12.3]} 46... Re7 {[%clk 0:00:20.5]} 47. fxg6 {[%clk 0:00:12.1]}
47... hxg6 {[%clk 0:00:20.5]} 48. Kf4 {[%clk 0:00:11.9]} 48... Nh5+ {[%clk
0:00:20.8]} 49. Kg4 {[%clk 0:00:11.4]} 49... Re1 {[%clk 0:00:20.7]} 50. Rc7
{[%clk 0:00:09.3]} 50... Rg1+ {[%clk 0:00:20.6]} 51. Kh3 {[%clk 0:00:09.1]}
51... Nf4+ {[%clk 0:00:17.7]} 52. Kh2 {[%clk 0:00:09.1]} 52... Rd1 {[%clk
0:00:15.2]} 53. Kg3 {[%clk 0:00:08.6]} 53... Ne6 {[%clk 0:00:15.6]} 54. Ra7
{[%clk 0:00:07.9]} 54... Rd3 {[%clk 0:00:15.8]} 55. Kg4 {[%clk 0:00:07.7]} 55...
Rd4+ {[%clk 0:00:11.3]} 56. Kg3 {[%clk 0:00:07.8]} 56... Nf4 {[%clk 0:00:10]}
57. Re7 {[%clk 0:00:06.9]} 57... Nh5+ {[%clk 0:00:09.4]} 58. Kh3 {[%clk
0:00:07.2]} 58... Rd3 {[%clk 0:00:08.5]} 59. Kg2 {[%clk 0:00:06.9]} 59... Nf4+
{[%clk 0:00:08.5]} 60. Kg3 {[%clk 0:00:07.1]} 60... Nd5 {[%clk 0:00:08.4]} 61.
Rd7 {[%clk 0:00:06]} 61... Rd1 {[%clk 0:00:07.9]} 62. Kf2 {[%clk 0:00:04.9]}
62... Nc3 {[%clk 0:00:05.9]} 63. Rc7 {[%clk 0:00:04.3]} 63... Nd5 {[%clk
0:00:05.1]} 64. Rd7 {[%clk 0:00:03.9]} 64... Nc3 {[%clk 0:00:05.4]} 65. Rc7
{[%clk 0:00:04.3]} 65... Rc1 {[%clk 0:00:06]} 66. Kg2 {[%clk 0:00:03.7]} 66...
Ne2 {[%clk 0:00:05.7]} 67. Re7 {[%clk 0:00:03.6]} 67... Rc2 {[%clk 0:00:06.2]}
68. Kh3 {[%clk 0:00:03.5]} 68... Nf4+ {[%clk 0:00:06.3]} 69. Kg4 {[%clk
0:00:04]} 69... Ne6 {[%clk 0:00:06.9]} 70. Kg3 {[%clk 0:00:04.1]} 70... Rc4
{[%clk 0:00:07.5]} 71. Kg2 {[%clk 0:00:04.1]} 71... Rf4 {[%clk 0:00:07.8]} 72.
Kg3 {[%clk 0:00:04.5]} 72... Rf6 {[%clk 0:00:08]} 73. Ra7 {[%clk 0:00:04.5]}
73... Nd4 {[%clk 0:00:08.5]} 74. Ra4 {[%clk 0:00:04.2]} 74... Nxf3 {[%clk
0:00:07.9]} 75. Re4 {[%clk 0:00:03.4]} 75... Nd2 {[%clk 0:00:07.7]} 76. Re3
{[%clk 0:00:03.2]} 76... Nc4 {[%clk 0:00:08]} 77. Re4 {[%clk 0:00:03.3]} 77...
Nd6 {[%clk 0:00:08.6]} 78. Rb4 {[%clk 0:00:03.4]} 78... Nf5+ {[%clk 0:00:09.2]}
79. Kg4 {[%clk 0:00:04]} 79... Ne3+ {[%clk 0:00:09.6]} 80. Kg3 {[%clk
0:00:04.4]} 80... Nf5+ {[%clk 0:00:10]} 81. Kg4 {[%clk 0:00:04.6]} 81... Nh6+
{[%clk 0:00:10.9]} 82. Kh3 {[%clk 0:00:04.8]} 82... Rf5 {[%clk 0:00:11.3]} 83.
Kg3 {[%clk 0:00:04.7]} 83... Rh5 {[%clk 0:00:11.5]} 84. Rb7 {[%clk 0:00:03.8]}
84... Nf5+ {[%clk 0:00:12]} 85. Kg4 {[%clk 0:00:04]} 85... Rxh4+ {[%clk
0:00:12.3]} 86. Kg5 {[%clk 0:00:04.6]} 86... Rh5+ {[%clk 0:00:11]} 87. Kg4
{[%clk 0:00:04.8]} 87... Ne3+ {[%clk 0:00:11.6]} 88. Kf4 {[%clk 0:00:04.7]}
88... Nd5+ {[%clk 0:00:12.3]} 89. Kg4 {[%clk 0:00:05.1]} 89... Nf6+ {[%clk
0:00:13]} 90. Kg3 {[%clk 0:00:05.6]} 90... Rf5 {[%clk 0:00:13.7]} 91. Kh4 {[%clk
0:00:05.4]} 91... Ne4 {[%clk 0:00:14.3]} 92. Kh3 {[%clk 0:00:05.4]} 92... Rg5
{[%clk 0:00:14.6]} 93. Kh4 {[%clk 0:00:05.4]} 93... Rg1 {[%clk 0:00:14.1]} 94.
Kh3 {[%clk 0:00:05.6]} 94... Kf6 {[%clk 0:00:14.6]} 95. Kh4 {[%clk 0:00:05.8]}
95... Nd6 {[%clk 0:00:15.2]} 96. Rb6 {[%clk 0:00:05.3]} 96... Ke5 {[%clk
0:00:15.7]} 97. Kh3 {[%clk 0:00:05.5]} 97... Ne4 {[%clk 0:00:15.3]} 98. Ra6
{[%clk 0:00:05.8]} 98... f5 {[%clk 0:00:15.6]} 99. Ra5+ {[%clk 0:00:04.7]} 99...
Kf4 {[%clk 0:00:16.1]} 100. Kh2 {[%clk 0:00:05.1]} 100... Rg5 {[%clk 0:00:15.7]}
101. Ra4 {[%clk 0:00:05.4]} 101... Kf3 {[%clk 0:00:16]} 102. Ra3+ {[%clk
0:00:05.1]} 102... Ke2 {[%clk 0:00:15.7]} 103. Ra2+ {[%clk 0:00:05.4]} 103...
Nd2 {[%clk 0:00:16.4]} 104. Ra6 {[%clk 0:00:04.8]} 104... f4 {[%clk 0:00:16.5]}
105. Re6+ {[%clk 0:00:04.5]} 105... Kd3 {[%clk 0:00:16.2]} 106. Kh3 {[%clk
0:00:04.7]} 106... f3 {[%clk 0:00:16.5]} 107. Rd6+ {[%clk 0:00:04.5]} 107... Ke2
{[%clk 0:00:16.4]} 108. Re6+ {[%clk 0:00:04.6]} 108... Kd1 {[%clk 0:00:17.1]}
109. Rd6 {[%clk 0:00:04.9]} 109... f2 {[%clk 0:00:17.7]} 110. Rf6 {[%clk
0:00:05.1]} 110... f1=Q+ {[%clk 0:00:17.6]} 111. Rxf1+ {[%clk 0:00:05.1]} 111...
Nxf1 {[%clk 0:00:18.3]} 112. Kh4 {[%clk 0:00:05]} 112... Rg1 {[%clk 0:00:16.9]}
113. Kh3 {[%clk 0:00:05.2]} 113... Nd2 {[%clk 0:00:17.6]} 114. Kh4 {[%clk
0:00:05.3]} 114... Nb3 {[%clk 0:00:17.6]} 115. Kh3 {[%clk 0:00:05.7]} 115... Re1
{[%clk 0:00:15.8]} 116. Kh4 {[%clk 0:00:06.6]} 116... Re5 {[%clk 0:00:16.1]}
117. Kh3 {[%clk 0:00:07.1]} 117... Rg5 {[%clk 0:00:14.3]} 118. Kh2 {[%clk
0:00:07]} 118... Ke2 {[%clk 0:00:14.2]} 119. Kh3 {[%clk 0:00:07.5]} 119... Kf3
{[%clk 0:00:14.4]} 120. Kh2 {[%clk 0:00:07.9]} 120... Nd4 {[%clk 0:00:11.6]}
121. Kh1 {[%clk 0:00:07.9]} 121... Kf2 {[%clk 0:00:12]} 122. Kh2 {[%clk
0:00:08.1]} 122... Rh5# {[%clk 0:00:12.9]} 0-1